Cogmind - Beta 9.6 @@@ ROGUE MODE // 2020.09.06 @ 23:07:45 Player: Finestep Result: Destroyed by Y-45 Defender with Heavy Assault Rifle Performance ------------- Evolutions (0) 0 Regions Visited (2) 400 Robots Destroyed (36) 180 Value Destroyed (521) 521 Prototype IDs (0) 0 Alien Tech Used (0) 0 Bonus (0) 0 TOTAL SCORE: 1101 Bonus ------- None Cogmind --------- Core Integrity 0/250 Matter 201/300 Energy 125/125 System Corruption 0% Temperature Cool (9) Movement Treading (200) Ox2 Location -10/Mines Parts ------- > --- POWER (1) -------- Light Ion Engine > --- PROPULSION (2) --- Light Treads Aluminum Leg > --- UTILITY (2) ------ Large Storage Unit High-capacity Storage Unit > --- WEAPON (2) ------- Light Assault Rifle Light Assault Rifle > --- INVENTORY (18) --- Light Ion Engine Aluminum Leg Large Storage Unit Hacking Suite Hacking Suite Medium Laser Light Assault Rifle Mining Laser Peak State ------------ > --- POWER ------------ Ion Engine > --- PROPULSION ------- Light Treads Light Treads > --- UTILITY ---------- Small Storage Unit High-capacity Storage Unit > --- WEAPON ----------- Assault Rifle Light Assault Rifle > --- INVENTORY -------- Light Ion Engine Small Storage Unit Hacking Suite Medium Laser Light Assault Rifle Light Assault Rifle Light Assault Rifle Mining Laser [Rating: 8] Favorites ----------- Power Ion Engine Engine Ion Engine Propulsion Light Treads Treads Light Treads Leg Aluminum Leg Utility High-capacity Storage Unit Storage High-capacity Storage Unit Weapon Light Assault Rifle Ballistic Gun Light Assault Rifle Ballistic Cannon Light Cannon Special Weapon Mining Laser Build | -11 -10 -10 ------- Run | Scr Mat Min Slots Evolved . | . . . Power . | . . . Propulsion . | . . . Utility . | . . . Weapon . | . . . Parts Attached 23 | 7 10 6 Power 4 | 1 1 2 Engine 4 | 1 1 2 Core . | . . . Reactor . | . . . Propulsion 6 | 2 3 1 Treads 4 | 2 1 1 Leg 2 | . 2 . Wheel . | . . . Hover . | . . . Flight . | . . . Utility 4 | 2 2 . Device . | . . . Storage 4 | 2 2 . Processor . | . . . Hackware . | . . . Protection . | . . . Artifact . | . . . Weapon 9 | 2 4 3 Energy Gun . | . . . Energy Cannon . | . . . Ballistic Gun 7 | 2 3 2 Ballistic Cannon 1 | . . 1 Launcher . | . . . Special Weapon 1 | . 1 . Impact Weapon . | . . . Slashing Weapon . | . . . Piercing Weapon . | . . . Special Melee Weapon . | . . . Unidentified Prototypes . | . . . Parts Lost 10 | . 5 5 Power 2 | . . 2 Propulsion 4 | . 3 1 Utility . | . . . Weapon 4 | . 2 2 Highest Loss Streak 4 | . 3 4 Average Slot Usage (%) 98 | . 98 97 Engine 14 | . 14 14 Treads 20 | . 22 3 Leg 6 | . 4 23 Storage 28 | . 28 28 Ballistic Gun 27 | . 27 19 Naked Turns . | . . . Heaviest Build 57 | 16 56 57 Greatest Support 40 | 40 40 20 Greatest Overweight (x) 18 | . 18 2 Average Overweight (x) 1 | . 1 2 Largest Inventory Capacity 18 | 8 18 18 Average Capacity 15 | 6 15 18 Most Carried 12 | 3 12 12 Average Carried 9 | 1 9 11 Final Capacity 18 | 8 18 18 Final Carried 12 | 3 12 8 Class Distribution -------------------- 78% | Mutant 21% | Scavenger-Mutant Dominant Class ---------------- Mutant | -10/Materials Scavenger-Mutant | -10/Mines Resources | -11 -10 -10 ----------- Run | Scr Mat Min Matter Collected 757 | 266 477 14 Remotely . | . . . Salvage Created 941 | 128 787 26 Parts 76 | 11 61 4 Haulers Intercepted 2 | . 2 . Recyclers Shooed . | . . . Parts Field Recycled . | . . . Retrieved Matter . | . . . Parts Self-Destructed . | . . . Prevented . | . . . Kills | -11 -10 -10 ------- Run | Scr Mat Min Combat Hostiles Destroyed 20 | . 17 3 Melee 1 | . . 1 Guns 18 | . 17 1 Cannons 1 | . . 1 Classes Destroyed 9 | 3 6 . Worker 3 | 2 1 . Builder 1 | . 1 . Tunneler 4 | 2 1 1 Hauler 2 | . 2 . Recycler 2 | 1 1 . Operator 2 | . 2 . Watcher 2 | . 2 . Swarmer 12 | . 9 3 Grunt 8 | . 8 . Best Kill Streak 6 | 2 6 2 Combat Bots Only 4 | . 4 2 Max Kills in Single Turn 1 | 1 1 1 Gunslinging . | . . . Exploded . | . . . Melee 1 | . . 1 Uniques/NPCs Destroyed . | . . . Combat | -11 -10 -10 -------- Run | Scr Mat Min Damage Taken 1524 | . 927 597 Core 254 | . 116 138 Absorbed by Shields . | . . . Core Remaining (%) 100 | 100 . . Volleys Fired 130 | 11 99 20 Largest 2 | 2 2 2 Hottest 100 | 40 100 55 Shots Fired 252 | 22 194 36 Gun 234 | 22 192 20 Cannon 16 | . . 16 Launcher . | . . . Special 2 | . 2 . Kinetic 250 | 22 192 36 Thermal 2 | . 2 . Explosive . | . . . Electromagnetic . | . . . Robot Hit Streak 13 | 4 13 6 Robot Miss Streak 4 | 2 4 4 Penetration Max . | . . . Secondary Targets 4 | . 4 . Max Gunslinging Chain 1 | . 1 . Shots Hit Robots 147 | 11 122 14 Core Hits 58 | 6 46 6 Critical Hits . | . . . Critical Kills . | . . . Critical Parts Destroyed . | . . . Melee Attacks . | . . . Impact . | . . . Slashing . | . . . Piercing . | . . . Sneak Attacks . | . . . Combat Hostiles . | . . . Follow-up Attacks . | . . . Damage Inflicted 1573 | 154 1230 189 Guns 1449 | 154 1224 71 Cannons 112 | . . 112 Explosions . | . . . Melee . | . . . Ramming 12 | . 6 6 Kinetic 1561 | 154 1224 183 Thermal . | . . . Explosive . | . . . Electromagnetic . | . . . Impact . | . . . Slashing . | . . . Piercing . | . . . Highest Corruption . | . . . Average Corruption . | . . . Corruption Purged . | . . . Overload Shots . | . . . Overflow Damage . | . . . Projectiles . | . . . Explosions . | . . . Melee . | . . . Knockbacks 2 | . . 2 Impact . | . . . Kinetic 2 | . . 2 Secondary . | . . . Self-Inflicted Damage . | . . . Shots . | . . . Rammed 2 | . 1 1 Targets Rammed 3 | . 1 2 Kicked . | . . . Crushed 1 | . . 1 Highest Temperature 40 | . 40 28 Average Temperature 11 | . 10 12 Received Heat Transfer 453 | . 336 117 Siege Activations . | . . . Robots Corrupted . | . . . Combat Hostiles . | . . . Parts Fried . | . . . Impact Corruptions . | . . . Robots Melted . | . . . Combat Hostiles . | . . . Parts Melted . | . . . Heat Transferred . | . . . Parts Sabotaged . | . . . Parts Stolen . | . . . Parts Stripped . | . . . Power Chain Reactions . | . . . Missiles Intercepted . | . . . Alert | -11 -10 -10 ------- Run | Scr Mat Min Peak Influence 340 | 25 340 107 Average Influence 151 | 8 171 67 Maximum Alert Level 1 | . 1 . Low Security (%) 74 | 100 70 100 Level 1 25 | . 29 . Level 2 . | . . . Level 3 . | . . . Level 4 . | . . . Level 5 . | . . . High Security . | . . . Max Security . | . . . Squads Dispatched 4 | . 4 . Investigation 1 | . 1 . Extermination . | . . . Reinforcement 3 | . 3 . Assault . | . . . Garrison . | . . . Intercept . | . . . Construction Impeded . | . . . Haulers Reinforced . | . . . Stealth | -11 -10 -10 --------- Run | Scr Mat Min Distress Signals 2 | . 2 . Communications Jammed . | . . . Distress Signals . | . . . Times Spotted 41 | . 36 5 Peak Tracking Total 5 | . 5 5 Tactical Retreats 1 | . 1 . Traps | -11 -10 -10 ------- Run | Scr Mat Min Traps Triggered . | . . . Indirectly . | . . . Trap Hack Attempts . | . . . Triggered . | . . . Disarmed . | . . . Reprogrammed . | . . . Reused . | . . . Traps Extracted . | . . . Installed . | . . . Triggered . | . . . Machines | -11 -10 -10 ---------- Run | Scr Mat Min Machines Disabled . | . . . Max in Single Turn . | . . . Machines Sabotaged . | . . . Garrisons Compromised . | . . . Overloaded Fab Kills . | . . . Fab Network Shutdowns . | . . . Hacking | -11 -10 -10 --------- Run | Scr Mat Min Machines Accessed 6 | . 6 . Terminals 6 | . 6 . Fabricators . | . . . Repair Stations . | . . . Recycling Units . | . . . Scanalyzers . | . . . Garrison Access . | . . . Total Hacks 23 | . 23 . Successful 14 | . 14 . Failed 8 | . 8 . Catastrophic . | . . . Database Lockouts 1 | . 1 . Manual 12 | . 12 . Terminals 23 | . 23 . Fabricators . | . . . Repair Stations . | . . . Recycling Units . | . . . Scanalyzers . | . . . Garrison Access . | . . . Terminal Hacks 10 | . 10 . Part Schematic 1 | . 1 . Robot Schematic 1 | . 1 . Robot Analysis 1 | . 1 . Locate Traps 1 | . 1 . Dispatch Records 1 | . 1 . Recall Investigation 1 | . 1 . Hauler Manifests 1 | . 1 . Registered Components 1 | . 1 . Zone Layout 2 | . 2 . Fabricator Hacks . | . . . Repair Station Hacks . | . . . Recycling Unit Hacks . | . . . Scanalyzer . | . . . Garrison Access Hacks . | . . . Unauthorized Hacks 4 | . 4 . Terminals 4 | . 4 . Track 1 | . 1 . Assimilate 1 | . 1 . Botnet 2 | . 2 . Fabricators . | . . . Repair Stations . | . . . Recycling Units . | . . . Scanalyzers . | . . . Garrison Access . | . . . Data Cores Recovered . | . . . Used . | . . . Hacking Detections 5 | . 5 . Full Trace Events . | . . . Feedback Events . | . . . Feedback Blocked . | . . . Robot Schematics Acquired 1 | . 1 . Robots Built . | . . . Matter . | . . . Time . | . . . Total Robot Build Rating . | . . . Part Schematics Acquired 1 | . 1 . Parts Built . | . . . Matter . | . . . Time . | . . . Total Part Build Rating . | . . . Parts Repaired . | . . . Time . | . . . Parts Recycled . | . . . Recycled Matter . | . . . Retrieved Matter . | . . . Retrieved Components . | . . . Parts Scanalyzed . | . . . Part Schematics Acquired . | . . . Parts Damaged . | . . . Bothacking | -11 -10 -10 ------------ Run | Scr Mat Min Used RIF Installer . | . . . Robots Hacked . | . . . Non-combat . | . . . Combat . | . . . Robot Hacks Applied . | . . . Relay Couplers Released . | . . . Robots Rewired . | . . . Allies Hacked . | . . . Hacks Repelled . | . . . Allies | -11 -10 -10 -------- Run | Scr Mat Min Total Allies 1 | . 1 . Largest Group 1 | . 1 1 Highest-Rated Group 10 | . 10 10 Highest-Rated Ally 10 | . 10 10 Total Orders 1 | . . 1 GOTO 1 | . . 1 Ally Attacks . | . . . Total Damage . | . . . Kills . | . . . Allies Corrupted . | . . . Allies Melted . | . . . Intel | -11 -10 -10 ------- Run | Scr Mat Min Robot Analysis Total 1 | . 1 . Derelict Logs Recovered . | . . . Drone Launches . | . . . Drone Recoveries . | . . . Exploration | -11 -10 -10 ------------- Run | Scr Mat Min Turns Passed 1694 | 116 1431 147 Spaces Moved 701 | 49 608 44 Core 8 | 5 3 . Treads 527 | 44 482 1 Legs 166 | . 123 43 Wheels . | . . . Hover . | . . . Flight . | . . . Fastest Speed 50 | 50 160 180 Average Speed 181 | 148 183 180 Slowest Speed 950 | 160 950 200 Overloaded Moves . | . . . Propulsion Burnouts . | . . . Robots Hopped . | . . . Cave-ins Triggered . | . . . Exploration Rate (%) 35 | 5 94 8 Regions Visited 2 Branch Regions 1 Pre-discovered Areas . | . . . Known Exits Taken . | . . . Unknown Exits Taken 2 | 1 1 . Scrap Searched . | . . . Spaces Dug 2 | . 2 . Terrain Destroyed 2 | . 2 . Melee . | . . . Projectile 2 | . 2 . AOE . | . . . Actions | -11 -10 -10 --------- Run | Scr Mat Min Total 890 | 69 745 76 Wait 14 | . 11 3 Move 699 | 48 607 44 Hop . | . . . Pick Up 17 | 3 13 1 Fast Attach 9 | 7 2 . Attach 8 | . 3 5 Detach . | . . . Swap 6 | . 5 1 Drop 4 | . 4 . Fire 130 | 11 99 20 Melee . | . . . Ram . | . . . Kick 1 | . . 1 Crush 2 | . 1 1 Escape Stasis . | . . . Rewire . | . . . Trap . | . . . Miscellaneous . | . . . Route ------- -11/Scrapyard -10/Materials (discovered 4 exits: [*Mat x3] / [*Min]) -10/Mines History --------- Turn | Location | Event 13 | -11/Scrapyard | Discovered new exit (range 16) 117 | -11/Scrapyard | Entered Materials 309 | -10/Materials | Build established: Mutant 319 | -10/Materials | Discovered new exit (range 5) 514 | -10/Materials | Discovered new exit (range 6) 669 | -10/Materials | Discovered new exit (range 14) 912 | -10/Materials | Discovered new exit (range 5) 1301 | -10/Materials | Lost 3 parts (2n1w) 1412 | -10/Materials | Central database locked down 1548 | -10/Materials | Entered Mines 1548 | -10/Mines | Accompanied by 1 ally 1607 | -10/Mines | Build established: Scavenger-Mutant 1647 | -10/Mines | Core integrity fell below 50% 1659 | -10/Mines | Core integrity fell below 20% 1686 | -10/Mines | Lost 4 parts (2p1n1w) 1695 | -10/Mines | Destroyed by Y-45 Defender with Heavy Assault Rifle Last Messages --------------- 01475_ Acquired Lgt. Treads. LOCATION=UNKNOWN GOAL=ESCAPE Something is scanning the area. 01617_ T-07 Excavator destroyed. 01623_ Acquired 12 matter. 01643_ Ion Engine destroyed. 01644_ S-10 Pest knocked back. 01644_ Lgt. Assault Rifle destroyed. 01646_ Aluminum Leg destroyed. 01648_ Slammed into S-10 Pest. 01651_ S-10 Pest destroyed. 01655_ Acquired Lgt. Ion Engine. 01655_ Ion Engine destroyed. 01656_ S-10 Pest knocked back. 01660_ Crushed S-10 Pest. 01660_ S-10 Pest destroyed. 01661_ Acquired 2 matter. 01684_ S-10 Pest destroyed. 01686_ Lgt. Cannon destroyed. Map ----- +----------------------------------------------------+ | ???????????????????????????????????????????? | | ???????????????????????????????????????????? | | ???????????????????????????????????????????? | | ???????????????????????????????????????????? | | ???????????????????????????????????????????? | | ???????????????????????????????????????????? | | ???????????????????????????????????????????? | | ???????????????????????????????????????????? | | ???????????????????????????????????????????? | | ???????????????????????????????????????????? | | ???????????????????????###?????????????????? | | ?????????????????????##"][?????????????????? | | ?????????????????????#""!!?????????????????? | | ?????????????????????# ?????????????????? | | ??????????????????????# ?????????????????? | | ?????????????????????###""###??????????????? | | ?????????????????????# ##?????????????? | | ?????????????????????# ##????????????? | | ?????????????????????# ##???????????? | | ?????????????????????# #???????????? | | ?????????????????????## = #???????????? | | ?????????????????#????# ##[| ##???????????? | | ?????????????????? ####??#%####????????????? | | ??????????????????? ##??#Y#???????????????? | | ???????????????????# ## ##Y#???????????????? | | ???????????????????# ## o@ #???????????????? | | ??????????????????## #### #???????????????? | | ?????????????????## ###u#???????????????? | | ?????????????????# #???????????????? | | ????????????????## #???????????????? | | ???????????????## ########???????????????? | | ??????????????## ##??????????????????????? | | ?????????????## #???????????????????????? | | ?????????????# #???????????????????????? | | ?????????????# ##???????????????????????? | | ?????????????## ###????????????????????????? | | ??????????????###??????????????????????????? | | ???????????????????????????????????????????? | | ???????????????????????????????????????????? | | | | | | | | | | | | | | | | | | | | | | | +----------------------------------------------------+ Best States ------------- Heat Dissipation 25 Energy Generation 10 Energy Capacity 250 Matter Stores 300 Matter Capacity 300 Sight Range 16 Terrain Scan Density 10 Evasion (%) 40 Recoil Reduction 2 Item Schematics ----------------- Hcp. Storage Unit | -10/Materials | Hacked Robot Schematics ------------------ M-13 Machinist | -10/Materials | Hacked Fabricated ------------ Nothing Alien Tech Used ----------------- None Achievements -------------- None Challenges ------------ None Game ------ Seed LargeHackingReconfigurator Manual? 0 Play Time 00:08:38 Cumulative 455.3 hours Start 2020.09.06 @ 22:59:57 End 2020.09.06 @ 23:07:45 Sessions 1 Manual Loads 0 Difficulty Rogue Special Mode None Game No. 306 Rogue 306 Adventurer 0 Explorer 0 Win Type - Total 4 Types 4/0/0/0/0/0/0 Lore% 86 Gallery% 87 Achievement% 66 Wizard Run 0 Options --------- ASCII 0 Keyboard 0 Movement Mouse Keybinds 1 Fullscreen 2 Font 24/Smallcaps Map View 76x50 Tactical HUD 1 Map Filters NONE Filters NONE Steam 1 RUN: 48d1b33d-a317-4696-b17c-f0f7ac66af94